Workbook

Sheet 13.01
A2: МБОУ "СОШ №33" НМР РТ | D2: Отд./корп | E2: 1 неделя | H2: День | I2: 2025-01-13
A4: Раздел | B4: № рец. | C4: Блюдо | D4: Выход, г | E4: Цена | F4: Ккал | G4: Белки | H4: Жиры | I4: Угл-ды
A5: Завтрак
B6: 209 | C6: Яйцо вареное | D6: 40 | F6: 63.00 | G6: 5.08 | H6: 4.60 | I6: 0.28
A7: 2 блюдо | B7: 175 | C7: Каша "Дружба" молочная с маслом сливочным | D7: 180/5 | F7: 258.12 | G7: 6.24 | H7: 11.16 | I7: 35.23
A8: гор.напиток | B8: 378 | C8: Чай с молоком и сахаром | D8: 200 | F8: 53.07 | G8: 1.52 | H8: 1.35 | I8: 8.92
A9: хлеб | C9: Батон нарезной | D9: 75 | F9: 195.52 | G9: 5.60 | H9: 2.16 | I9: 35.36
D10: 500 | F10: =SUM(F6:F9) -> 569.71 | G10: =SUM(G6:G9) -> 18.44 | H10: 19.27 | I10: 79.79
A11: Обед
A12: 1 блюдо | B12: 88 | C12: Щи из свежей капусты с картофелем, со сметаной | D12: 200/5 | F12: 163.90 | G12: 9.54 | H12: 11.91 | I12: 6.50
A13: 2 блюдо | B13: 757 | C13: Котлеты Домашние с гречкой | D13: 90 | F13: 248.00 | G13: 6.40 | H13: 11.14 | I13: 35.71
A14: гарнир | B14: 303 | C14: Макаронные отварные с маслом сливочным | D14: 150/3 | F14: 176.10 | G14: 5.68 | H14: 2.88 | I14: 31.96
A15: напиток | B15: 349 | C15: Напиток из сухофруктов | D15: 200 | F15: 92.90 | G15: 0.70 | H15: 0.10 | I15: 22.03
A16: хлеб | C16: Хлеб ржаной | D16: 55 | F16: 108.90 | G16: 3.63 | H16: 0.66 | I16: 21.78
D17: 703 | F17: =SUM(F12:F16) -> 789.80 | G17: =SUM(G12:G16) -> 25.95 | H17: 26.69 | I17: 117.98
C18: бесп питание младшие + допол. питание | D18: =SUM(D10+D17) -> 1203 | E18: 122.10 | F18: =SUM(F10+F17) -> 1359.51 | G18: =SUM(G10+G17) -> 44.39 | H18: 45.96 | I18: 197.77
A20: Горячий завтрак (младшие)
B21: 209 | C21: Яйцо вареное | D21: 40 | F21: 63.00 | G21: 5.08 | H21: 4.60 | I21: 0.28
A22: 2 блюдо | B22: 757 | C22: Котлеты Домашние с гречкой | D22: 90 | F22: 248.00 | G22: 6.40 | H22: 11.14 | I22: 35.71
A23: гарнир | B23: 303 | C23: Макаронные отварные с маслом сливочным | D23: 150/3 | F23: 176.10 | G23: 5.68 | H23: 2.88 | I23: 31.96
A24: гор.напиток | B24: 378 | C24: Чай с молоком и сахаром | D24: 200 | F24: 53.07 | G24: 1.52 | H24: 1.35 | I24: 8.92
A25: хлеб | C25: Хлеб пшеничный | D25: 20 | F25: 47.00 | G25: 1.52 | H25: 0.16 | I25: 9.84
C27: бесплатное питание младшие | D27: 503 | E27: 80.66 | F27: =F21+F22+F23+F24+F25+F26 -> 587.17 | G27: =G21+G22+G23+G24+G25+G26 -> 20.20 | H27: =H21+H22+H23+H24+H25+H26 -> 20.13 | I27: =I21+I22+I23+I24+I25+I26 -> 86.71
A29: Раздел | B29: № рец. | C29: Блюдо | D29: Выход, г | E29: Цена | F29: Ккал | G29: Белки | H29: Жиры | I29: Угл-ды
A30: Старшие
B31: 757 | C31: Котлеты Домашние с гречкой | D31: 100 | F31: 275.55 | G31: 8.90 | H31: 12.37 | I31: 37.67
A32: 2 блюдо | B32: 303 | C32: Макаронные отварные с маслом сливочным | D32: 180/3 | F32: 241.94 | G32: 9.64 | H32: 7.60 | I32: 33.35
A33: гарнир | B33: 523 | C33: Свекла отварная доп.гарнир | D33: 30 | F33: 27.84 | G33: 0.42 | H33: 1.80 | I33: 2.48
A34: гор.напиток | B34: 378 | C34: Чай с молоком и сахаром | D34: 200 | F34: 53.07 | G34: 1.52 | H34: 1.35 | I34: 8.92
A35: хлеб | C35: Хлеб пшеничный/ ржаной | D35: 20/20 | F35: 86.60 | G35: 2.84 | H35: 0.40 | I35: 17.76
C37: питание старшие | D37: 553 | E37: 83.80 | F37: =SUM(F31:F35) -> 685.00 | G37: =SUM(G31:G35) -> 23.32 | H37: 23.52 | I37: 100.18

Sheet 14.01
A2: МБОУ "СОШ №33" НМР РТ | D2: Отд./корп | E2: 1 неделя | H2: День | I2: 2025-01-14
A4: Раздел | B4: № рец. | C4: Блюдо | D4: Выход, г | E4: Цена | F4: Ккал | G4: Белки | H4: Жиры | I4: Угл-ды
A5: Завтрак
A6: Фрукты | C6: Фрукты яблоки | D6: 100 | F6: 47.00 | G6: 0.40 | H6: 0.40 | I6: 9.80
A7: 2 блюдо | B7: 173 | C7: Каша гречневая молочная вязкая с маслом сливочным молочная | D7: 150/5 | F7: 356.10 | G7: 11.47 | H7: 14.42 | I7: 36.78
A8: гор.напиток | B8: 379 | C8: Кофейный напиток с молоком | D8: 200 | F8: 60.10 | G8: 3.17 | H8: 2.68 | I8: 9.98
A9: хлеб | C9: Батон нарезной | D9: 45 | F9: 117.90 | G9: 3.37 | H9: 1.30 | I9: 23.13
D10: 500 | F10: =SUM(F6:F9) -> 581.10 | G10: =SUM(G6:G9) -> 18.41 | H10: 18.80 | I10: 79.69
A11: Обед
A13: 1 блюдо | B13: 96 | C13: Рассольник Ленинградский | D13: 200 | F13: 107.25 | G13: 7.94 | H13: 7.82 | I13: 15.56
A14: 2 блюдо | B14: 762 | C14: Запеканка картофельная с птицей | D14: 180 | F14: 404.10 | G14: 13.58 | H14: 16.26 | I14: 52.09
A15: гарнир | B15: 335 | C15: Капуста квашеная (доп.гарнир) | D15: 35 | F15: 29.99 | G15: 0.59 | H15: 1.75 | I15: 2.94
A16: напиток | B16: 555 | C16: Напиток из изюма и яблок | D16: 200 | F16: 68.12 | G16: 0.20 | H16: 0.10 | I16: 19.82
A17: хлеб | C17: Хлеб ржаной/пшеничный | D17: 30/20 | F17: 106.40 | G17: 3.50 | H17: 0.52 | I17: 21.72
D18: 715 | F18: =SUM(F12:F17) -> 715.86 | G18: =SUM(G12:G17) -> 25.81 | H18: =SUM(H12:H17) -> 26.45 | I18: =SUM(I12:I17) -> 112.13
C19: бесп питание младшие + допол. питание | D19: =D10+D18 -> 1215 | E19: 122.10 | F19: =SUM(F10+F18) -> 1296.96 | G19: =SUM(G10+G18) -> 44.22 | H19: =SUM(H10+H18) -> 45.25 | I19: =SUM(I10+I18) -> 191.82
A21: Горячий завтрак (младшие)
A23: Фрукты | C23: Фрукты яблоки | D23: 100 | F23: 47.00 | G23: 0.40 | H23: 0.40 | I23: 9.80
A24: 2 блюдо | B24: 762 | C24: Запеканка картофельная с птицей | D24: 180 | F24: 404.10 | G24: 13.58 | H24: 16.26 | I24: 52.09
A25: гор.напиток | C25: Кофейный напиток с молоком | D25: 200 | F25: 60.10 | G25: 3.17 | H25: 2.68 | I25: 9.98
A26: хлеб | C26: Хлеб пшеничный | D26: 20 | F26: 47.00 | G26: 1.52 | H26: 0.16 | I26: 9.84
C28: бесплатное питание младшие | D28: 500 | E28: 80.66 | F28: =SUM(F22:F27) -> 558.20 | G28: =SUM(G22:G27) -> 18.67 | H28: 19.50 | I28: 81.71
A30: Раздел | B30: № рец. | C30: Блюдо | D30: Выход, г | E30: Цена | F30: Ккал | G30: Белки | H30: Жиры | I30: Угл-ды
A31: Старшие
A32: Фрукты | C32: Фрукты яблоки | D32: 100 | F32: 47.00 | G32: 0.40 | H32: 0.40 | I32: 9.80
A33: 2 блюдо | B33: 762 | C33: Запеканка картофельная с птицей | D33: 250 | F33: 425.30 | G33: 17.60 | H33: 21.60 | I33: 39.68
A34: гор.напиток | B34: 555 | C34: Напиток из яблок и изюма | D34: 200 | F34: 68.12 | G34: 0.20 | H34: 0.10 | I34: 19.82
A35: хлеб | C35: Хлеб ржаной/пшеничный | D35: 30/20 | F35: 106.60 | G35: 3.50 | H35: 0.52 | I35: 21.72
C38: питание старшие | D38: 600 | E38: 83.80 | F38: =SUM(F32:F36) -> 647.02 | G38: =SUM(G32:G36) -> 21.70 | H38: 22.62 | I38: 91.02

Sheet 15.01
A2: МБОУ "СОШ №33" НМР РТ | D2: Отд./корп | E2: 1 неделя | H2: День | I2: 2025-01-15
A4: Раздел | B4: № рец. | C4: Блюдо | D4: Выход, г | E4: Цена | F4: Ккал | G4: Белки | H4: Жиры | I4: Угл-ды
A5: Завтрак
A6: хлеб | B6: 843 | C6: Бутерброд с повидлом | D6: 60 | F6: 153.60 | G6: 2.37 | H6: 0.87 | I6: 34.92
A7: 2 блюдо | B7: 173 | C7: Каша молочная пшенная | D7: 200 | F7: 305.50 | G7: 13.60 | H7: 17.67 | I7: 23.55
A8: гор.напиток | B8: 377 | C8: Чай с сахаром и лимоном | D8: 200 | F8: 34.02 | G8: 0.13 | H8: 0.02 | I8: 8.20
A9: хлеб | C9: Батон нарезной | D9: 40 | F9: 104.80 | G9: 2.99 | H9: 1.15 | I9: 20.56
D10: 500 | F10: =SUM(F6:F9) -> 597.92 | G10: =SUM(G6:G9) -> 19.09 | H10: =SUM(H6:H9) -> 19.71 | I10: =SUM(I6:I9) -> 87.23
A11: Обед
A12: 1 блюдо | B12: 113 | C12: Суп лапша домашняя с картофелем | D12: 200 | F12: 192.40 | G12: 6.35 | H12: 7.83 | I12: 39.30
A13: 2 блюдо | B13: 291 | C13: Плов из куриной грудки | D13: 200 | F13: 330.50 | G13: 14.42 | H13: 17.96 | I13: 26.93
A14: холод.закуска | B14: 856 | C14: Морковь свежая доп.гарнир | D14: 40 | F14: 13.20 | G14: 0.52 | H14: 0.04 | I14: 2.56
A15: напиток | B15: 388 | C15: Напиток из плодов шиповника | D15: 200 | F15: 123.60 | G15: 0.60 | H15: 0.10 | I15: 20.20
A16: хлеб | C16: Хлеб ржаной/пшеничный | D16: 30/30 | F16: 129.90 | G16: 4.26 | H16: 0.60 | I16: 26.64
D17: 700 | F17: =SUM(F12:F16) -> 789.60 | G17: =SUM(G12:G16) -> 26.15 | H17: =SUM(H12:H16) -> 26.53 | I17: =SUM(I12:I16) -> 115.63
C18: бесп питание младшие + допол. питание | D18: =SUM(D10+D17) -> 1200 | E18: 122.10 | F18: 1387.52 | G18: 45.24 | H18: 46.24 | I18: 202.86
A20: Горячий завтрак (младшие)
A21: хлеб | B21: 843 | C21: Бутерброд с повидлом | D21: 60 | F21: 153.60 | G21: 2.37 | H21: 0.87 | I21: 34.92
A22: 2 блюдо | B22: 291 | C22: Плов из куриной грудки | D22: 200 | F22: 330.50 | G22: 14.42 | H22: 17.96 | I22: 26.93
A23: гор.напиток | B23: 377 | C23: Чай с сахаром и лимоном | D23: 200 | F23: 34.02 | G23: 0.13 | H23: 0.02 | I23: 8.20
A24: хлеб | C24: Хлеб ржаной/пшеничный | D24: 20/20 | F24: 86.60 | G24: 2.84 | H24: 0.40 | I24: 17.76
C26: бесплатное питание младшие | D26: 500 | E26: 80.66 | F26: =SUM(F21:F25) -> 604.72 | G26: =SUM(G21:G25) -> 19.76 | H26: 19.25 | I26: 87.81
A28: Раздел | B28: № рец. | C28: Блюдо | D28: Выход, г | E28: Цена | F28: Ккал | G28: Белки | H28: Жиры | I28: Угл-ды
A29: Старшие
A30: хлеб | B30: 843 | C30: Бутерброд с повидлом | D30: 60 | F30: 153.60 | G30: 2.37 | H30: 0.87 | I30: 34.92
A31: 2 блюдо | B31: 291 | C31: Плов из куриной грудки | D31: 250 | F31: 439.60 | G31: 18.10 | H31: 22.45 | I31: 39.60
A32: гор.напиток | B32: 377 | C32: Чай с сахаром и лимоном | D32: 200 | F32: 34.02 | G32: 0.13 | H32: 0.02 | I32: 8.20
A33: хлеб | C33: Хлеб ржаной/пшеничный | D33: 20/20 | F33: 86.60 | G33: 2.84 | H33: 0.40 | I33: 17.76
C35: питание старшие | D35: 550 | E35: 83.80 | F35: =SUM(F30:F33) -> 713.82 | G35: =SUM(G30:G33) -> 23.44 | H35: =SUM(H30:H33) -> 23.74 | I35: =SUM(I30:I33) -> 100.48

Sheet 16.01
A2: МБОУ "СОШ №33" НМР РТ | D2: Отд./корп | E2: 1 неделя | H2: День | I2: 2025-01-16
A4: Раздел | B4: № рец. | C4: Блюдо | D4: Выход, г | E4: Цена | F4: Ккал | G4: Белки | H4: Жиры | I4: Угл-ды
A5: Завтрак
A6: хлеб | B6: 3 | C6: Бутерброд с сыром и маслом сливочным | D6: 50 | F6: 155.00 | G6: 6.27 | H6: 7.86 | I6: 14.83
A7: 2 блюдо | B7: 173 | C7: Каша геркулесовая молочная вязкая с маслом сливочным | D7: 180/5 | F7: 206.30 | G7: 4.99 | H7: 7.40 | I7: 28.81
A8: гор.напиток | B8: 382 | C8: Какао с молоком | D8: 200 | F8: 58.60 | G8: 4.08 | H8: 3.54 | I8: 2.61
A9: хлеб | C9: Батон нарезной | D9: 65 | F9: 170.30 | G9: 4.87 | H9: 1.88 | I9: 33.41
D10: 500 | F10: =SUM(F6:F9) -> 590.20 | G10: =SUM(G6:G9) -> 20.21 | H10: =SUM(H6:H9) -> 20.68 | I10: =SUM(I6:I9) -> 79.66
A11: Обед
A12: 1 блюдо | B12: 82 | C12: Борщ из свежей капусты с картофелем и со сметаной | D12: 200/5 | F12: 293.10 | G12: 8.57 | H12: 10.69 | I12: 28.93
A13: 2 блюдо | B13: 944 | C13: Котлеты "Нежные" из куриных грудок | D13: 90 | F13: 169.80 | G13: 6.60 | H13: 12.93 | I13: 13.79
A14: гарнир | B14: 303 | C14: Каша пшеничная вязкая с маслом сливочным | D14: 150/5 | F14: 227.00 | G14: 6.70 | H14: 4.38 | I14: 35.99
A15: напиток | B15: 388 | C15: Напиток из урюка | D15: 200 | F15: 68.52 | G15: 0.75 | H15: 0.06 | I15: 15.95
A16: хлеб | C16: Хлеб ржаной | D16: 50 | F16: 36.64 | G16: 3.30 | H16: 0.60 | I16: 19.80
D18: 700 | F18: =SUM(F12:F17) -> 795.06 | G18: =SUM(G12:G17) -> 25.92 | H18: =SUM(H12:H17) -> 28.66 | I18: =SUM(I12:I17) -> 114.46
C19: бесп питание младшие + допол. питание | D19: =D10+D18 -> 1200 | E19: 122.10 | F19: =SUM(F10+F18) -> 1385.26 | G19: =SUM(G10+G18) -> 46.13 | H19: =SUM(H10+H18) -> 49.34 | I19: =SUM(I10+I18) -> 194.12
A21: Горячий завтрак (младшие)
A22: холод.закуска | B22: 15 | C22: Сыр порционно | D22: 10 | F22: 34.33 | G22: 2.63 | H22: 2.66 | I22: 0.00
A23: 2 блюдо | B23: 944 | C23: Котлеты "Нежные" из куриных грудок | D23: 90 | F23: 169.80 | G23: 6.60 | H23: 12.93 | I23: 13.79
A24: напиток | B24: 303 | C24: Каша пшеничная вязкая с маслом сливочным | D24: 150/5 | F24: 227.00 | G24: 6.70 | H24: 4.38 | I24: 35.99
A25: хлеб | B25: 388 | C25: Напиток из урюка | D25: 200 | F25: 68.52 | G25: 0.75 | H25: 0.06 | I25: 15.95
A26: хлеб | C26: Хлеб ржаной/пшеничный | D26: 30/20 | F26: 106.40 | G26: 3.50 | H26: 0.52 | I26: 21.72
C28: бесплатное питание младшие | D28: 500 | E28: 80.66 | F28: =SUM(F22:F26) -> 606.05 | G28: =SUM(G22:G26) -> 20.18 | H28: =SUM(H22:H26) -> 20.55 | I28: =SUM(I22:I26) -> 87.45
A30: Раздел | B30: № рец. | C30: Блюдо | D30: Выход, г | E30: Цена | F30: Ккал | G30: Белки | H30: Жиры | I30: Угл-ды
A31: Старшие
A32: хлеб | C32: Печенье | D32: 20 | F32: 62.14 | G32: 1.48 | H32: 1.88 | I32: 5.42
A33: 2 блюдо | B33: 944 | C33: Котлеты "Нежные" из куриных грудок | D33: 100 | F33: 188.66 | G33: 6.83 | H33: 13.11 | I33: 21.32
A34: гарнир | B34: 303 | C34: Каша пшеничная вязкая с маслом сливочным | D34: 180/3 | F34: 247.00 | G34: 7.70 | H34: 5.07 | I34: 40.59
A35: гор.напиток | B35: 382 | C35: Какао с молоком | D35: 200 | F35: 58.60 | G35: 4.08 | H35: 3.54 | I35: 2.61
A36: хлеб | C36: Хлеб ржаной/пшеничный | D36: 30/20 | F36: 106.40 | G36: 3.50 | H36: 0.52 | I36: 21.72
C37: питание старшие | D37: 550 | E37: 83.80 | F37: =SUM(F32:F36) -> 662.80 | G37: =SUM(G32:G36) -> 23.59 | H37: 24.12 | I37: 91.66

Sheet 17.01
A2: МБОУ "СОШ №33" НМР РТ | D2: Отд./корп | E2: 1 неделя | H2: День | I2: 2025-01-17
A4: Раздел | B4: № рец. | C4: Блюдо | D4: Выход, г | E4: Цена | F4: Ккал | G4: Белки | H4: Жиры | I4: Угл-ды
A5: Завтрак
A6: Фрукты | C6: Фрукты (яблоки) | D6: 100 | F6: 47.00 | G6: 0.40 | H6: 0.40 | I6: 9.80
A7: 2 блюдо | B7: 761 | C7: Сырники из творога со сгущенкой | D7: 120/30 | F7: 398.93 | G7: 15.55 | H7: 18.35 | I7: 40.33
A8: гор.напиток | B8: 376 | C8: Чай с сахаром | D8: 200 | F8: 32.00 | G8: 0.07 | H8: 0.02 | I8: 8.00
A9: хлеб | C9: Батон нарезной | D9: 50 | F9: 131.00 | G9: 3.75 | H9: 1.45 | I9: 25.70
D10: 500 | F10: =SUM(F6:F9) -> 608.93 | G10: =SUM(G6:G9) -> 19.77 | H10: =SUM(H6:H9) -> 20.22 | I10: =SUM(I6:I9) -> 83.83
A11: Обед
A12: 1 блюдо | B12: 102 | C12: Суп картофельный с горохом | D12: 200 | F12: 318.60 | G12: 8.35 | H12: 7.22 | I12: 66.83
A13: 2 блюдо | B13: 290 | C13: Птица тушеная в сметанно-томатном соусе | D13: 50/50 | F13: 166.00 | G13: 11.65 | H13: 11.66 | I13: 3.51
A14: гарнир | B14: 312 | C14: Пюре картофельное с маслом сливочным | D14: 150/3 | F14: 157.55 | G14: 3.09 | H14: 6.98 | I14: 12.48
A15: напиток | B15: 342 | C15: Компот из свежих яблок | D15: 200 | F15: 46.60 | G15: 0.16 | H15: 0.16 | I15: 10.91
A16: хлеб | C16: Хлеб ржаной/пшеничный | D16: 30/20 | F16: 106.40 | G16: 3.50 | H16: 0.52 | I16: 21.72
D18: 703 | F18: =SUM(F12:F17) -> 795.15 | G18: =SUM(G12:G17) -> 26.75 | H18: =SUM(H12:H17) -> 26.54 | I18: =SUM(I12:I17) -> 115.45
C19: бесп питание младшие + допол. питание | D19: =D10+D18 -> 1203 | E19: 122.10 | F19: =SUM(F10+F18) -> 1404.08 | G19: =SUM(G10+G18) -> 46.52 | H19: =SUM(H10+H18) -> 46.76 | I19: =SUM(I10+I18) -> 199.28
A21: Горячий завтрак (младшие)
A22: Фрукты | C22: Фрукты (яблоки) | D22: 100 | F22: 47.00 | G22: 0.40 | H22: 0.40 | I22: 9.80
A23: 2 блюдо | B23: 761 | C23: Сырники из творога со сгущенкой | D23: 120/30 | F23: 398.93 | G23: 15.55 | H23: 18.35 | I23: 40.33
A24: гор.напиток | B24: 376 | C24: Чай с сахаром | D24: 200 | F24: 32.00 | G24: 0.07 | H24: 0.02 | I24: 8.00
A25: хлеб | C25: Хлеб ржаной/пшеничный | D25: 30/20 | F25: 106.40 | G25: 3.50 | H25: 0.52 | I25: 21.72
C26: бесплатное питание младшие | D26: 500 | E26: 80.66 | F26: =SUM(F22:F25) -> 584.33 | G26: =SUM(G22:G25) -> 19.52 | H26: 19.29 | I26: 79.85
A28: Раздел | B28: № рец. | C28: Блюдо | D28: Выход, г | E28: Цена | F28: Ккал | G28: Белки | H28: Жиры | I28: Угл-ды
A29: Старшие
A30: Фрукты | C30: Фрукты (яблоки) | D30: 100 | F30: 47.00 | G30: 0.40 | H30: 0.40 | I30: 9.80
A31: 2 блюдо | B31: 290 | C31: Запеканка из творога с повидлом | D31: 200 | F31: 502.80 | G31: 19.63 | H31: 22.18 | I31: 51.50
A32: гор.напиток | B32: 376 | C32: Чай с сахаром | D32: 200 | F32: 32.00 | G32: 0.07 | H32: 0.02 | I32: 8.00
A33: хлеб | C33: Хлеб пшеничный/ржаной | D33: 20/30 | F33: 106.40 | G33: 3.50 | H33: 0.52 | I33: 21.72
C34: питание старшие | D34: 550 | E34: 83.80 | F34: =SUM(F30:F33) -> 688.20 | G34: =SUM(G30:G33) -> 23.60 | H34: 23.12 | I34: 91.02

Sheet 18.01
A2: МБОУ "СОШ №33" НМР РТ | D2: Отд./корп | E2: 1 неделя | H2: День | I2: 2025-01-18
A4: Раздел | B4: № рец. | C4: Блюдо | D4: Выход, г | E4: Цена | F4: Ккал | G4: Белки | H4: Жиры | I4: Угл-ды
A5: Старшие
A7: 2 блюдо | B7: 832 | C7: Курица запеченная | D7: 100 | F7: 222.90 | G7: 10.70 | H7: 10.54 | I7: 0.00
A8: гарнир | B8: 303 | C8: Каша гречневая вязкая с маслом сливочным | D8: 180/3 | F8: 258.40 | G8: 6.52 | H8: 10.89 | I8: 55.67
A9: холод.закуска | B9: 856 | C9: Морковь свежая доп.гарнир | D9: 40 | F9: 13.20 | G9: 0.52 | H9: 0.04 | I9: 2.56
A10: напиток | B10: 377 | C10: Напиток из сухофруктов | D10: 200 | F10: 34.02 | G10: 0.13 | H10: 0.02 | I10: 8.20
A11: хлеб | C11: Хлеб пшеничный/ржаной | D11: 20/30 | F11: 106.40 | G11: 3.50 | H11: 0.52 | I11: 21.72
C13: Итого | D13: 573 | E13: 83.80 | F13: =SUM(F7:F12) -> 634.92 | G13: =SUM(G7:G12) -> 21.37 | H13: 22.01 | I13: 88.15
